bitfinex/quotes_SOLUSD_20240708
["timestamp","ask_amount","ask_price","bid_price","bid_amount"]
[1720446276015,20.0,140.74,140.69,0.17]
[1720446276445,20.68786272,140.75,140.69,0.17]
[1720446277044,7.1059,140.73,140.69,0.34]
[1720446277342,20.0,140.72,140.66,15.3945]
[1720446277551,20.0,140.72,140.69,0.34]
[1720446277755,20.0,140.73,140.69,0.17]
[1720446278226,20.0,140.74,140.69,1.58991382]
[1720446278419,20.0,140.75,140.69,0.51]
[1720446278615,0.68786272,140.77,140.69,0.34]
[1720446278838,0.68786272,140.77,140.69,1.28160782]
[1720446278839,7.79176272,140.77,140.69,1.28160782]
[1720446279035,20.68786272,140.76,140.69,1.28160782]
[1720446279225,20.68786272,140.76,140.69,1.76098018]
[1720446279429,0.68786272,140.76,140.69,1.76098018]
[1720446279618,7.1043,140.76,140.69,1.76098018]
[1720446279945,7.1054,140.74,140.69,1.76098018]
[1720446280143,7.1054,140.74,140.69,1.59098018]
[1720446280349,7.79276272,140.75,140.69,1.59098018]
[1720446280648,0.68786272,140.78,140.69,1.59098018]
[1720446280853,20.0,140.74,140.69,1.59098018]
[1720446281028,20.0,140.75,140.69,1.59098018]
[1720446281227,20.68786272,140.76,140.69,1.59098018]
[1720446281432,0.68786272,140.76,140.7,0.17]
[1720446281638,0.68786272,140.76,140.69,0.17]
[1720446281852,7.1048,140.75,140.69,0.34]
[1720446282154,20.68786272,140.74,140.69,0.34]
[1720446282335,20.0,140.74,140.69,0.34]
[1720446282724,20.0,140.75,140.69,0.34]
[1720446282925,20.0,140.76,140.7,0.17]
[1720446283137,0.68786272,140.78,140.7,0.17]
[1720446283747,0.68786272,140.78,140.69,0.34]
[1720446283955,18.44616272,140.78,140.69,0.70027093]
[1720446284125,7.1038,140.77,140.69,1.76104931]
[1720446284332,5.83013831,140.8,140.69,1.76104931]
[1720446284333,20.0,140.76,140.69,1.76104931]
[1720446284549,20.68786272,140.79,140.69,1.76104931]
[1720446284745,7.1042,140.76,140.69,1.76104931]
[1720446285047,20.0,140.75,140.69,1.76104931]
[1720446285624,0.68786272,140.74,140.69,1.76104931]
[1720446285873,7.79346272,140.74,140.69,1.42104931]
[1720446286035,20.0,140.73,140.69,1.42104931]
[1720446286451,0.68786272,140.72,140.65,1.42124067]
[1720446286656,7.1081,140.69,140.61,0.24214086]
[1720446286962,20.0,140.68,140.61,0.24214086]
[1720446287176,0.68786272,140.72,140.61,0.24214086]
[1720446287559,7.1074,140.7,140.61,0.24214086]
[1720446287874,0.68786272,140.72,140.63,100.0]
[1720446288064,0.68786272,140.74,140.65,100.0]
[1720446288268,0.68786272,140.74,140.67,6.5927]
[1720446288479,7.79316272,140.74,140.67,6.5927]
[1720446288790,7.79316272,140.74,140.68,0.17]
[1720446288951,7.79316272,140.74,140.68,0.34]
[1720446289151,7.1058,140.73,140.68,0.34]
[1720446289384,27.79416272,140.72,140.67,6.5927]
[1720446289755,20.0,140.72,140.67,6.5927]
[1720446290477,20.68786272,140.72,140.67,6.5927]
[1720446290779,20.0,140.71,140.63,6.6483]
[1720446291087,7.79546272,140.7,140.64,0.34]
[1720446291379,20.0,140.69,140.64,0.34]
[1720446291785,27.79566272,140.69,140.64,0.17]
[1720446291953,27.1078,140.69,140.64,0.17]
[1720446292157,20.0,140.69,140.64,1.59168213]
[1720446292447,20.68786272,140.75,140.64,0.17]
[1720446292653,7.1072,140.71,140.64,0.17]
[1720446292864,20.0,140.7,140.64,0.17]
[1720446293053,20.0,140.7,140.64,0.34]
[1720446293275,20.0,140.7,140.65,0.17]
[1720446293654,27.1068,140.71,140.64,0.34]
[1720446294150,27.79466272,140.71,140.64,0.34]
[1720446294376,0.68786272,140.7,140.63,6.6483]
[1720446294676,41.1479,140.69,140.63,6.6483]
[1720446294978,20.68786272,140.68,140.63,6.6483]
[1720446295481,20.0,140.68,140.63,6.6483]
[1720446295868,20.0,140.68,140.64,0.17]
[1720446296262,20.0,140.68,140.64,0.96179558]
[1720446296459,20.0,140.68,140.64,1.13179558]
[1720446296874,34.04,140.71,140.65,0.17]
[1720446297093,34.04,140.71,140.65,0.96216561]
[1720446297275,34.04,140.71,140.66,0.34]
[1720446297992,34.04,140.71,140.66,0.91378688]
[1720446298158,41.1468,140.71,140.66,1.76142841]
[1720446298359,20.0,140.7,140.66,1.76142841]
[1720446300681,34.04,140.74,140.67,1.59139527]
[1720446300986,34.04,140.74,140.68,0.34]
[1720446301187,7.79366272,140.73,140.68,0.34]
[1720446301372,41.1463,140.72,140.68,0.17]
[1720446301576,34.04,140.72,140.68,0.17]
[1720446301760,34.72786272,140.74,140.68,0.17]
[1720446301961,20.0,140.73,140.68,0.17]
[1720446302465,20.0,140.74,140.68,0.34]
[1720446302671,20.0,140.74,140.69,0.17]
[1720446303375,20.0,140.74,140.69,1.59115548]
[1720446303691,20.0,140.74,140.7,0.17]
[1720446304067,5.6086076,140.77,140.71,6.2028]
[1720446304265,7.96703146,140.8,140.71,6.2028]
[1720446304266,41.83026272,140.8,140.73,0.17]
[1720446304585,34.04,140.8,140.73,1.76061297]
[1720446304786,0.68786272,140.83,140.73,101.76061297]
[1720446304993,34.04,140.84,140.74,0.17]
[1720446304994,34.04,140.81,140.74,0.17]
[1720446305162,7.1029,140.79,140.74,1.59057188]
[1720446305495,34.04,140.81,140.75,0.34]
[1720446305790,41.82966272,140.81,140.76,0.17]
[1720446306203,7.1034,140.78,140.76,0.17]
[1720446306397,34.04,140.78,140.76,0.17]
[1720446306687,5.70677119,140.83,140.72,100.0]
[1720446306688,0.68786272,140.83,140.72,100.0]
[1720446306905,7.102,140.81,140.72,101.42026983]
[1720446307189,41.33665708,140.83,140.72,101.42026983]
[1720446307190,34.04,140.83,140.72,101.42026983]
[1720446307377,34.04,140.83,140.74,100.0]
[1720446307577,7.78666272,140.87,140.77,6.5611]
[1720446307765,34.04,140.85,140.78,117.34069014]
[1720446307968,39.2213,140.92,140.81,0.17]
[1720446307969,0.68786272,140.9,140.81,0.17]
[1720446308297,34.04,140.89,140.81,0.34]
[1720446308472,0.68786272,140.88,140.82,1.41971785]
[1720446308660,34.04,140.86,140.81,0.34]
[1720446308864,34.04,140.86,140.81,0.17]
[1720446309083,0.68786272,140.85,140.81,0.17]
[1720446309363,34.04,140.83,140.8,0.17]
[1720446309688,47.5983773,140.91,140.78,15.4107]
[1720446309689,13.5583773,140.91,140.78,15.4107]
[1720446309867,34.04,140.85,140.78,15.4107]
[1720446310185,34.04,140.82,140.77,6.5611]
[1720446310389,34.04,140.8,140.77,6.5611]
[1720446310599,0.68786272,140.83,140.77,6.5611]
[1720446310766,0.68786272,140.82,140.74,15.4107]
[1720446310964,7.1026,140.8,140.73,6.4244]
[1720446311190,20.0,140.84,140.73,6.4244]
[1720446311191,20.68786272,140.79,140.73,6.4244]
[1720446311766,20.0,140.78,140.74,0.68105732]
[1720446311966,20.0,140.8,140.74,0.68105732]
[1720446312186,0.68786272,140.79,140.75,0.17]
[1720446312368,0.68786272,140.79,140.73,6.4244]
[1720446312687,20.68786272,140.82,140.73,6.4244]
[1720446313290,7.1056,140.74,140.69,6.5996]
[1720446313475,0.68786272,140.73,140.69,6.5996]
[1720446313668,20.68786272,140.78,140.69,6.5996]
[1720446313873,20.0,140.77,140.69,6.5996]
[1720446314075,7.1053,140.74,140.69,6.5996]
[1720446314277,20.0,140.77,140.7,17.7676]
[1720446314481,7.1023,140.8,140.73,7.1057]
[1720446314682,34.0431,140.83,140.7,17.7676]
[1720446314886,17.7548,140.81,140.71,0.17]
[1720446315405,17.7548,140.81,140.71,0.34]
[1720446315609,7.1039,140.77,140.71,0.34]
[1720446316091,17.7548,140.81,140.71,0.34]
[1720446316305,7.1032,140.78,140.72,7.1062]
[1720446316596,20.0,140.8,140.73,0.17]
[1720446316597,27.1039,140.77,140.73,0.17]
[1720446316775,20.0,140.76,140.71,0.17]
[1720446316981,27.1043,140.76,140.71,0.17]
[1720446317198,27.1043,140.76,140.7,0.17]
[1720446317598,7.1047,140.75,140.7,0.17]
[1720446317798,7.1047,140.75,140.7,1.59103976]
[1720446318126,20.0,140.76,140.7,8.69783976]
[1720446318331,27.1044,140.76,140.7,1.59103976]
[1720446318790,27.1044,140.76,140.71,0.17]
[1720446318994,27.1044,140.76,140.71,1.59093876]
[1720446319199,27.1044,140.76,140.72,0.17]
[1720446319599,20.0,140.76,140.72,0.17]
[1720446319806,20.0,140.76,140.69,6.5996]
[1720446320001,7.1054,140.74,140.69,6.5996]
[1720446320215,20.0,140.73,140.69,13.7073]
[1720446320417,20.0,140.73,140.7,24.875]
[1720446320607,20.0,140.73,140.71,1.41703841]
[1720446320794,20.0,140.75,140.71,1.41703841]
[1720446321115,27.1048,140.75,140.71,1.41703841]
[1720446321420,7.1036,140.78,140.72,0.17]
[1720446321609,7.1038,140.77,140.72,0.34]
[1720446322119,5.77457822,140.79,140.72,0.17]
[1720446322331,7.1054,140.74,140.69,6.5996]
[1720446322496,7.1039,140.77,140.7,7.4472]
[1720446322700,20.0,140.76,140.7,7.4472]
[1720446323033,20.0,140.76,140.71,26.00040748]
[1720446323208,13.47615867,140.82,140.75,17.7617]
[1720446323527,7.1007,140.84,140.76,7.4442]
[1720446323715,7.101,140.83,140.77,7.86793974]
[1720446323915,38.25,140.86,140.77,6.4507]
[1720446324225,38.25,140.86,140.73,22.6909]
[1720446324226,7.1028,140.79,140.73,22.6909]
[1720446324397,44.90944845,140.85,140.74,0.17]
[1720446324398,38.25,140.82,140.74,0.17]
[1720446324602,7.104,140.77,140.74,0.17]
[1720446324825,27.1044,140.76,140.73,6.4507]
[1720446325027,37.7551,140.81,140.73,6.4507]
[1720446325233,7.1037,140.78,140.74,0.17]
[1720446325405,20.0,140.77,140.74,0.17]
[1720446325605,7.102,140.81,140.74,7.2749]
[1720446325818,7.1013,140.82,140.75,18.541555]
[1720446326024,7.1013,140.82,140.76,0.17]
[1720446326530,7.1007,140.83,140.76,7.2739]
[1720446326730,5.5599641,140.86,140.77,18.0987]
[1720446327023,7.0996,140.86,140.8,6.0266]
[1720446327229,40.10310381,140.91,140.81,0.17]
[1720446327442,7.74968502,140.91,140.83,25.0219]
[1720446327734,7.74968502,140.91,140.81,100.34]
[1720446327735,7.74968502,140.91,140.85,0.17]
[1720446327900,7.0981,140.89,140.84,0.34]
[1720446328101,7.74968502,140.91,140.85,0.17]
[1720446328328,7.74968502,140.91,140.87,0.17]
[1720446328624,7.74968502,140.91,140.88,0.17]
[1720446329016,7.74968502,140.91,140.89,0.17]
[1720446329201,7.74968502,140.91,140.89,0.51]
[1720446329728,7.74968502,140.91,140.89,0.34]
[1720446330019,7.74968502,140.91,140.87,1.02577478]
[1720446330020,7.0972,140.9,140.87,1.02577478]
[1720446330214,20.0,140.89,140.86,6.6817]
[1720446330414,20.0,140.9,140.87,0.17]
[1720446330616,20.0,140.9,140.87,1.58955369]
[1720446331016,20.0,140.9,140.84,6.0154]
[1720446331624,7.0987,140.87,140.84,6.0154]
[1720446331811,20.0,140.86,140.84,6.0154]
[1720446332121,37.7437,140.9,140.79,6.5187]
[1720446332330,7.1007,140.83,140.79,6.5187]
[1720446332506,7.0998,140.85,140.79,6.5187]
[1720446332704,20.0,140.84,140.79,6.5187]
[1720446332906,20.0,140.84,140.8,1.41775765]
[1720446333120,20.40274797,140.91,140.82,7.1011]
[1720446333325,20.0,140.9,140.83,1.41745563]
[1720446333526,14.84668502,140.91,140.83,8.51815563]
[1720446333728,7.0972,140.9,140.84,0.51]
[1720446333903,7.0972,140.9,140.85,1.41725435]
[1720446334232,7.74968502,140.91,140.84,0.17]
[1720446334434,17.7436,140.9,140.79,6.5187]
[1720446335028,17.7463,140.88,140.79,6.5187]
[1720446335322,17.7486,140.86,140.79,6.5187]
[1720446335519,7.1013,140.82,140.79,6.5187]
[1720446335739,20.0,140.81,140.79,6.5187]
[1720446336232,20.0,140.82,140.79,6.5187]
[1720446336612,20.0,140.85,140.76,15.2328]
[1720446337431,7.1028,140.79,140.76,15.2328]
[1720446337733,20.0,140.78,140.76,15.2328]
[1720446338232,7.1019,140.81,140.76,15.2328]
[1720446338530,20.0,140.8,140.76,15.2328]
[1720446338839,20.0,140.8,140.77,0.34]
[1720446339127,22.15978181,140.9,140.8,0.17]
[1720446339337,7.0997,140.85,140.8,0.17]
[1720446339527,7.0999,140.85,140.8,0.17]
[1720446340037,7.0983,140.88,140.8,0.17]
[1720446340223,7.0978,140.89,140.8,8.16703046]
[1720446340535,7.74968502,140.91,140.82,7.1008]
[1720446340712,7.74968502,140.91,140.83,0.89582108]
[1720446340713,7.0978,140.89,140.83,0.89582108]
[1720446340911,7.74968502,140.91,140.83,0.72582108]
[1720446341230,7.74968502,140.91,140.81,6.4627]
[1720446341231,13.53632848,140.91,140.81,6.4627]
[1720446341436,38.25,140.9,140.81,6.4627]
[1720446341609,7.0998,140.85,140.81,6.4627]
[1720446341805,20.0,140.84,140.81,6.4627]
[1720446342011,27.0998,140.85,140.81,6.4627]
[1720446342231,20.0,140.85,140.81,6.4627]
[1720446342419,7.1011,140.83,140.81,6.4627]
[1720446342614,20.0,140.82,140.77,6.512]
[1720446342813,20.0,140.82,140.78,0.34]
[1720446343018,20.0,140.82,140.78,0.17]
[1720446343339,20.0,140.84,140.77,6.512]
[1720446343509,7.1019,140.81,140.77,6.512]
[1720446343709,20.0,140.8,140.77,6.512]
[1720446344213,20.0,140.84,140.77,6.512]
[1720446344411,7.1023,140.8,140.77,6.512]
[1720446344614,20.0,140.79,140.77,6.512]
[1720446345329,20.0,140.82,140.77,6.512]
[1720446345520,7.1005,140.84,140.78,0.34]
[1720446345831,33.8233,140.88,140.78,0.34]
[1720446345832,7.0983,140.88,140.79,7.2723]
[1720446346046,7.0983,140.88,140.8,7.4421]
[1720446346257,13.53632848,140.91,140.81,0.17]
[1720446346417,13.53632848,140.91,140.83,7.1004]
[1720446346759,14.84648502,140.91,140.84,6.569]
[1720446346912,7.74968502,140.91,140.88,17.7451]
[1720446347112,7.74968502,140.91,140.89,0.17]
[1720446347314,7.74968502,140.91,140.9,7.0972]
[1720446347536,7.74968502,140.91,140.9,0.34]
[1720446348548,7.74968502,140.91,140.9,0.17]
[1720446348849,7.74968502,140.91,140.85,15.1911]
[1720446349016,7.74968502,140.91,140.87,7.2686]
[1720446349216,7.74968502,140.91,140.89,7.2676]
[1720446349411,7.74968502,140.91,140.9,0.51]
[1720446349618,7.74968502,140.91,140.9,7.4372]
[1720446349848,7.74968502,140.91,140.9,8.48375571]
[1720446350622,7.74968502,140.91,140.9,1.21655571]
[1720446350822,7.74968502,140.91,140.9,0.51]
[1720446351038,7.74968502,140.91,140.9,1.3864935]
[1720446351424,7.74968502,140.91,140.9,0.51]
[1720446351633,0.2,140.99,140.93,7.0952]
[1720446351839,0.2,140.99,140.94,0.51]
[1720446352033,0.2,140.99,140.94,7.605]
[1720446352526,0.2,140.99,140.94,0.51]
[1720446353120,0.2,140.99,140.94,0.34]
[1720446353423,0.2,140.99,140.95,0.17]
[1720446353629,0.2,140.99,140.94,0.34]
[1720446353828,0.2,140.99,140.95,0.17]
[1720446354143,0.2,140.99,140.93,0.51]
[1720446354333,0.2,140.99,140.93,0.34]
[1720446354520,0.2,140.99,140.9,6.3875]
[1720446354721,7.0936,140.98,140.9,6.3875]
[1720446354921,7.0936,140.98,140.9,13.4845]
[1720446354922,20.0,140.97,140.9,13.4845]
[1720446355141,20.0,140.97,140.91,7.0967]
[1720446355320,20.0,140.97,140.92,1.41769084]
[1720446355520,20.0,140.98,140.92,1.41769084]
[1720446355935,20.0,140.98,140.93,0.34]
[1720446356533,27.0933,140.98,140.93,1.58759023]
[1720446357020,20.0,140.98,140.94,0.17]
[1720446357228,0.2,140.99,140.95,1.4173606]
[1720446357749,0.2,140.99,140.93,1.5873606]
[1720446358051,7.2928,140.99,140.93,1.5873606]
[1720446358250,20.0,140.98,140.93,1.5873606]
[1720446358418,20.0,140.98,140.94,0.17]
[1720446358826,20.2,140.99,140.94,0.17]
[1720446359223,20.0,140.98,140.94,0.17]
[1720446359552,0.2,140.99,140.94,0.34]
[1720446359855,0.2,140.99,140.95,0.17]
[1720446362051,0.2,140.99,140.9,6.3875]
[1720446362229,7.0943,140.96,140.91,1.02730033]
[1720446362430,7.0953,140.94,140.91,1.02730033]
[1720446362626,20.0,140.95,140.91,1.02730033]
[1720446362627,20.0,140.93,140.91,1.02730033]
[1720446362926,20.0,140.93,140.9,7.41480033]
[1720446363351,20.0,140.95,140.9,7.41480033]
[1720446363552,20.0,140.96,140.91,17.741]
[1720446363748,20.0,140.96,140.9,7.41480033]
[1720446363749,7.0953,140.94,140.9,6.3875]
[1720446363949,20.0,140.93,140.86,6.0169]
[1720446364129,20.0,140.93,140.86,7.43274363]
[1720446364332,7.0973,140.9,140.86,6.0169]
[1720446364663,20.0,140.89,140.87,1.41534109]
[1720446365258,27.095,140.95,140.87,1.41534109]
[1720446365428,37.7373,140.95,140.87,1.41534109]
[1720446365627,37.7373,140.95,140.86,6.0169]
[1720446365823,20.0,140.95,140.86,6.0169]
[1720446366050,20.0,140.95,140.87,0.17]
[1720446366250,7.0963,140.92,140.87,0.17]
[1720446366457,20.0,140.91,140.86,6.0169]
[1720446366665,7.0967,140.92,140.86,6.0169]
[1720446366830,20.0,140.91,140.86,13.116]
[1720446367166,0.2,140.99,140.92,100.0]
[1720446367464,0.2,140.99,140.94,117.737]
[1720446367665,0.2,140.99,140.98,100.0]
[1720446367968,0.8794961,141.08,140.99,7.2623]
[1720446367969,7.9677961,141.08,140.99,7.2623]
[1720446368134,0.8794961,141.08,141.02,7.0911]
[1720446368339,0.8794961,141.08,141.03,0.34]
[1720446368659,0.8794961,141.08,141.01,1.41405332]
[1720446368834,0.8794961,141.08,141.02,0.17]
[1720446368835,7.0892,141.06,141.02,0.17]
[1720446369038,7.0902,141.04,141.0,1.41368504]
[1720446369240,20.0,141.03,141.01,0.17]
[1720446369771,27.0906,141.03,140.98,1.4134845]
[1720446369932,27.0906,141.03,140.99,0.17]
[1720446370137,7.0912,141.02,140.99,0.17]
[1720446370336,20.0,141.01,140.96,6.6092]
[1720446370532,20.0,141.01,140.97,0.17]
[1720446370766,7.0923,141.0,140.96,6.6092]
[1720446370962,20.0,140.99,140.96,6.6092]
[1720446371167,27.0918,141.01,140.96,6.6092]
[1720446371562,7.0922,141.0,140.93,1.02807198]
[1720446371749,20.0,140.99,140.93,1.02807198]
[1720446371953,20.0,140.99,140.94,0.34]
[1720446372165,20.0,140.99,140.94,1.75869566]
[1720446372540,27.0927,140.99,140.94,1.41869566]
[1720446372876,27.0927,140.99,140.93,1.41887677]
[1720446373366,20.0,140.99,140.93,1.41887677]
[1720446373960,7.0931,140.99,140.92,6.0245]
[1720446374266,27.0932,140.98,140.92,6.0245]
[1720446374445,20.0,140.98,140.93,1.41346684]
[1720446374773,37.731,141.0,140.88,6.0872]
[1720446375065,7.0938,140.97,140.88,13.1851]
[1720446375244,20.0,140.96,140.9,117.7419]
[1720446375440,20.0,140.96,140.92,17.7394]
[1720446375647,20.0,140.96,140.93,7.0955]
[1720446375838,7.0922,141.0,140.92,17.7394]
[1720446376039,20.0,140.99,140.92,17.7394]
[1720446376262,20.0,140.99,140.93,0.17]
[1720446376755,17.7311,141.0,140.92,0.17]
[1720446377070,7.094,140.97,140.92,1.15361704]
[1720446377282,20.0,140.96,140.92,0.17]
[1720446377990,20.0,140.96,140.91,0.34]
[1720446378768,5.58725349,141.02,140.92,0.17]
[1720446378995,6.5573,141.05,140.92,0.17]
[1720446378996,17.7314,141.0,140.92,0.98463365]
[1720446379159,21.49518898,141.03,140.94,7.265]
[1720446379485,21.49518898,141.03,140.93,1.4186091]
[1720446379679,7.0933,140.98,140.94,0.17]
[1720446379874,17.7284,141.02,140.94,0.17]
[1720446380074,21.49518898,141.03,140.94,0.34]
[1720446380075,20.0,141.01,140.94,0.34]
[1720446380388,21.49518898,141.03,140.94,0.34]
[1720446380389,5.71798898,141.03,140.95,7.0945]
[1720446380607,0.8794961,141.08,141.02,7.091]
[1720446380768,0.8794961,141.08,141.03,1.58717345]
[1720446380960,0.8794961,141.08,141.04,0.34]
[1720446381159,0.8794961,141.08,141.05,0.17]
[1720446381371,0.8794961,141.08,141.05,1.58696487]
[1720446381763,0.8794961,141.08,141.06,0.17]
[1720446382470,0.8794961,141.08,141.03,1.41696487]
[1720446382798,7.089,141.07,141.02,0.17]
[1720446382969,0.8794961,141.08,141.02,0.17]
[1720446382970,7.0893,141.06,141.02,0.17]
[1720446383171,20.0,141.05,141.02,1.41705677]
[1720446383364,0.8794961,141.08,141.03,0.17]
[1720446383565,0.8794961,141.08,141.06,0.17]
[1720446383867,0.8794961,141.08,141.06,0.34]
[1720446384087,0.8794961,141.08,141.07,0.17]
[1720446384297,0.2,141.19,141.14,7.085]
[1720446384598,0.2,141.19,141.13,0.34]
[1720446384791,0.2,141.19,141.16,17.7094]
[1720446385007,0.2,141.19,141.17,0.87555789]
[1720446385309,0.2,141.19,141.18,1.58626761]
[1720446385495,0.2,141.19,141.18,1.92626761]
[1720446386378,0.2,141.19,141.18,9.00936761]
[1720446386876,0.2,141.19,141.18,1.92626761]
[1720446387596,0.2,141.19,141.18,9.00936761]
[1720446387795,0.8794961,141.22,141.18,1.92626761]
[1720446388004,0.8794961,141.22,141.21,24.9557]
[1720446388289,0.8794961,141.22,141.21,1.92504053]
[1720446388894,0.8794961,141.22,141.21,1.75504053]
[1720446389084,0.8794961,141.22,141.21,0.34]
[1720446389275,0.8794961,141.22,141.21,0.17]
[1720446389478,0.8794961,141.22,141.21,1.58597708]
[1720446389696,0.8794961,141.22,141.21,1.92597708]
[1720446389908,0.8794961,141.22,141.21,9.00757708]
[1720446390197,0.8794961,141.22,141.21,109.00757708]
[1720446390402,0.2,141.29,141.22,0.17]
[1720446390603,7.0735,141.38,141.29,107.2473]
[1720446390898,7.2726,141.39,141.31,107.2462]
[1720446391204,0.2,141.39,141.32,0.34]
[1720446391409,0.2,141.39,141.31,0.17]
[1720446391698,0.2,141.39,141.31,7.2462]
[1720446391870,0.2,141.39,141.33,0.17]
[1720446392070,0.2,141.39,141.33,0.34]
[1720446392317,0.2,141.39,141.34,0.17]
[1720446392615,0.2,141.39,141.35,0.17]
[1720446392814,0.2,141.39,141.35,0.34]
[1720446393117,0.2,141.39,141.35,1.75344351]
[1720446393501,0.2,141.39,141.35,0.34]
[1720446393903,0.2,141.39,141.35,0.17]
[1720446394120,0.2,141.39,141.35,1.75314351]
[1720446395416,0.2,141.39,141.35,1.92314351]
[1720446397111,0.2,141.39,141.35,0.17]
[1720446397289,0.2,141.39,141.3,1.41485814]
[1720446397490,7.0735,141.38,141.31,30.0]
[1720446397722,27.0738,141.37,141.32,1.41478388]
[1720446397923,20.0,141.37,141.33,1.41485862]
[1720446398425,27.0737,141.37,141.3,1.4147828]
[1720446398790,7.0756,141.33,141.26,17.6973]
[1720446398991,20.0,141.32,141.24,13.5066]
[1720446399300,20.0,141.32,141.25,7.0795]
[1720446399625,20.0,141.32,141.24,6.4269]
[1720446399807,17.6871,141.35,141.24,6.4269]
[1720446399808,7.0775,141.3,141.24,6.4269]
[1720446399992,20.0,141.29,141.25,0.48174649]
[1720446400597,7.0783,141.28,141.25,0.48174649]
[1720446400808,27.0787,141.27,141.19,13.4293]
[1720446401326,7.0797,141.25,141.2,0.37202157]
[1720446401615,20.0,141.24,141.2,0.37202157]
[1720446401830,20.0,141.27,141.2,0.37202157]
[1720446402622,7.0776,141.3,141.22,17.7019]
[1720446402822,20.0,141.29,141.23,0.37194292]
[1720446402996,20.0,141.29,141.22,17.7019]
[1720446402997,7.0776,141.29,141.24,0.37239123]
[1720446403203,20.0,141.28,141.21,7.45399123]
[1720446403541,20.0,141.28,141.22,7.421]
[1720446403829,20.0,141.29,141.23,0.54278027]
[1720446403994,20.0,141.29,141.24,0.54275387]
[1720446404500,20.0,141.3,141.25,0.17]
[1720446404689,27.0766,141.31,141.25,1.58557249]
[1720446404897,5.57554222,141.35,141.26,0.34]
[1720446405099,0.8794961,141.36,141.27,1.41525421]
[1720446405314,7.9540961,141.36,141.28,0.17]
[1720446405525,7.9540961,141.36,141.28,9.00315387]
[1720446405700,7.9540961,141.36,141.28,1.58505387]
[1720446405926,0.8794961,141.36,141.29,0.34]
[1720446406117,0.8794961,141.36,141.3,1.41485357]
[1720446406319,0.8794961,141.36,141.31,0.17]
[1720446406633,7.9536961,141.36,141.31,1.75465335]
[1720446406932,7.0756,141.33,141.31,0.17]
[1720446407103,7.0753,141.34,141.31,0.17]
[1720446407519,0.8794961,141.36,141.23,17.7009]
[1720446407811,0.8794961,141.36,141.21,135.4079]
[1720446407812,17.6871,141.35,141.24,1.58537716]
[1720446408029,17.6871,141.35,141.24,0.17]
[1720446408222,17.6871,141.35,141.2,17.7046]
[1720446408223,17.6899,141.33,141.2,17.7046]
[1720446408533,0.8794961,141.36,141.25,100.0]
[1720446408837,0.8794961,141.36,141.26,17.6974]
[1720446409037,7.0749,141.35,141.26,24.776]
[1720446409249,7.0753,141.34,141.27,0.8007738]
[1720446409426,0.8794961,141.36,141.27,0.8007738]
[1720446409609,0.8794961,141.36,141.28,0.34]
[1720446409934,0.8794961,141.36,141.29,0.80066044]
[1720446410244,0.8794961,141.36,141.3,1.58518312]
[1720446410535,0.8794961,141.36,141.31,0.17]
[1720446411438,0.8794961,141.36,141.31,0.34]
[1720446411737,0.8794961,141.36,141.32,0.17]
[1720446412233,0.8794961,141.36,141.25,17.6983]
[1720446412234,7.0752,141.34,141.27,0.17]
[1720446412444,20.0,141.33,141.27,1.75518444]